[Event "16th EWICC 2015"]
[Site "Kutaisi"]
[Date "2015.06.02"]
[Round "7"]
[White "Guramishvili, Sopiko"]
[Black "Batsiashvili, Nino"]
[Result "0-1"]
[ECO "A04"]
[WhiteElo "2370"]
[BlackElo "2473"]
[Annotator "Robot 11"]
[PlyCount "150"]
[EventDate "2015.??.??"]
[EventCountry "GEO"]
[TimeControl "900+10"]

1. Nf3 {[%emt 0:00:02]} f5 {[%emt 0:00:01]} 2. g3 {[%emt 0:00:04]} Nf6 {[%emt
0:00:01]} 3. Bg2 {[%emt 0:00:04]} g6 {[%emt 0:00:01]} 4. d4 {[%emt 0:00:08]}
Bg7 {[%emt 0:00:01]} 5. O-O {[%emt 0:00:03]} O-O {[%emt 0:00:00]} 6. b3 {[%emt
0:00:02]} d6 {[%emt 0:00:04]} 7. Bb2 {[%emt 0:00:01]} c6 {[%emt 0:00:02]} 8. c4
{[%emt 0:00:14]} a5 {[%emt 0:00:01]} 9. Nc3 {[%emt 0:00:08]} Na6 {[%emt 0:00:
01]} 10. Qc2 {[%emt 0:00:25]} Bd7 {[%emt 0:00:09]} 11. Rac1 {[%emt 0:00:25]}
Qc7 {[%emt 0:00:17]} 12. a3 {[%emt 0:00:09]} Rae8 {[%emt 0:00:03]} 13. e4 {
[%emt 0:00:37]} fxe4 {[%emt 0:00:03]} 14. Nxe4 {[%emt 0:00:16]} Nxe4 {[%emt 0:
00:06]} 15. Qxe4 {[%emt 0:00:01]} Nc5 {[%emt 0:00:10]} 16. Qe3 {[%emt 0:00:20]}
a4 {[%emt 0:00:04]} 17. b4 {[%emt 0:00:25]} Nb3 {[%emt 0:00:01]} 18. Rc2 {
[%emt 0:00:56]} Bf5 {[%emt 0:02:26]} 19. Re2 {[%emt 0:00:01]} Qd7 {[%emt 0:00:
01]} 20. Nd2 {[%emt 0:00:37]} Bg4 {[%emt 0:03:53]} 21. f3 {[%emt 0:00:30]} Nxd2
{[%emt 0:00:08]} 22. Qxd2 {[%emt 0:00:01]} Bh3 {[%emt 0:00:03]} 23. Rfe1 {
[%emt 0:00:26]} Bxg2 {[%emt 0:00:06]} 24. Kxg2 {[%emt 0:00:02]} e6 {[%emt 0:00:
06]} 25. Qc2 {[%emt 0:01:29]} b5 {[%emt 0:00:02]} 26. Qd3 {[%emt 0:02:45]} d5 {
[%emt 0:00:07]} 27. cxb5 {[%emt 0:00:02]} cxb5 {[%emt 0:00:01]} 28. Bc1 {[%emt
0:00:03]} Rc8 {[%emt 0:01:00]} 29. Bf4 {[%emt 0:00:26]} Rc4 {[%emt 0:00:29]}
30. Rxe6 {[%emt 0:01:14]} Rxd4 {[%emt 0:00:48]} 31. Qe3 {[%emt 0:00:28]} Rc4 {
[%emt 0:00:13]} 32. Re7 {[%emt 0:01:34]} Qf5 {[%emt 0:00:01]} 33. Rxg7+ {[%emt
0:01:31]} Kxg7 {[%emt 0:00:02]} 34. Bh6+ {[%emt 0:00:03]} Kg8 {[%emt 0:00:19]}
35. Bxf8 {[%emt 0:00:03]} Qxf8 {[%emt 0:02:31]} 36. Re2 {[%emt 0:00:20]} Qf7 {
[%emt 0:00:54]} 37. Qb6 {[%emt 0:00:15]} Qd7 {[%emt 0:00:44]} 38. Qb8+ {[%emt
0:01:01]} Rc8 {[%emt 0:00:23]} 39. Qe5 {[%emt 0:00:24]} d4 {[%emt 0:00:24]} 40.
Rd2 {[%emt 0:00:58]} d3 {[%emt 0:00:27]} 41. Qe4 {[%emt 0:00:11]} Rc3 {[%emt 0:
00:32]} 42. Qa8+ {[%emt 0:01:12]} Kg7 {[%emt 0:00:08]} 43. Qe4 {[%emt 0:00:02]}
Rxa3 {[%emt 0:01:58]} 44. Qe5+ {[%emt 0:00:02]} Kf7 {[%emt 0:00:09]} 45. Qf4+ {
[%emt 0:00:02]} Qf5 {[%emt 0:00:10]} 46. Qc7+ {[%emt 0:00:01]} Kg8 {[%emt 0:00:
05]} 47. Qd8+ {[%emt 0:00:19]} Kg7 {[%emt 0:00:05]} 48. Qe7+ {[%emt 0:00:37]}
Kg8 {[%emt 0:01:12]} 49. Qd8+ {[%emt 0:00:02]} Kf7 {[%emt 0:00:27]} 50. Qc7+ {
[%emt 0:00:07]} Ke6 {[%emt 0:00:10]} 51. Qc6+ {[%emt 0:00:23]} Ke7 {[%emt 0:00:
02]} 52. Qc7+ {[%emt 0:00:24]} Qd7 {[%emt 0:00:09]} 53. Qe5+ {[%emt 0:00:08]}
Qe6 {[%emt 0:00:53]} 54. Qc7+ {[%emt 0:00:42]} Kf8 {[%emt 0:00:46]} 55. Qd8+ {
[%emt 0:00:44]} Qe8 {[%emt 0:00:10]} 56. Qd6+ {[%emt 0:00:05]} Qe7 {[%emt 0:00:
10]} 57. Qf4+ {[%emt 0:00:21]} Kg8 {[%emt 0:00:13]} 58. Qb8+ {[%emt 0:00:04]}
Kg7 {[%emt 0:00:07]} 59. Qxb5 {[%emt 0:00:10]} Qe3 {[%emt 0:00:17]} 60. Qd7+ {
[%emt 0:00:18]} Kh6 {[%emt 0:00:19]} 61. Qh3+ {[%emt 0:00:01]} Kg5 {[%emt 0:00:
03]} 62. Qg4+ {[%emt 0:00:23]} Kf6 {[%emt 0:00:04]} 63. Qh4+ {[%emt 0:00:07]}
Kg7 {[%emt 0:00:26]} 64. Rf2 {[%emt 0:00:27]} d2 {[%emt 0:00:10]} 65. Qd8 {
[%emt 0:00:04]} Rd3 {[%emt 0:00:02]} 66. Qc7+ {[%emt 0:00:02]} Kh6 {[%emt 0:00:
15]} 67. Qb8 {[%emt 0:00:05]} Qd4 {[%emt 0:00:34]} 68. Qf8+ {[%emt 0:00:05]}
Qg7 {[%emt 0:00:07]} 69. Qf4+ {[%emt 0:00:31]} g5 {[%emt 0:00:00]} 70. Qe4 {
[%emt 0:00:06]} d1=Q {[%emt 0:00:04]} 71. h4 {[%emt 0:00:08]} Rd5 {[%emt 0:00:
17]} 72. Qe6+ {[%emt 0:00:09]} Qg6 {[%emt 0:00:02]} 73. Qe7 {[%emt 0:00:01]}
gxh4 {[%emt 0:00:05]} 74. Qxh4+ {[%emt 0:00:08]} Kg7 {[%emt 0:00:02]} 75. Qe7+
{[%emt 0:00:01]} Qf7 {[%emt 0:00:01]} 0-1

[Event "16th EWICC 2015"]
[Site "Kutaisi"]
[Date "2015.06.02"]
[Round "7"]
[White "Javakhishvili, Lela"]
[Black "Stefanova, Antoaneta"]
[Result "1/2-1/2"]
[ECO "D11"]
[WhiteElo "2472"]
[BlackElo "2512"]
[Annotator "Robot 11"]
[PlyCount "108"]
[EventDate "2015.??.??"]
[EventCountry "GEO"]
[TimeControl "900+10"]

1. d4 {[%emt 0:00:02]} d5 {[%emt 0:00:01]} 2. c4 {[%emt 0:00:01]} c6 {[%emt 0:
00:01]} 3. Nf3 {[%emt 0:00:02]} Nf6 {[%emt 0:00:02]} 4. e3 {[%emt 0:00:02]} Bg4
{[%emt 0:00:48]} 5. Qb3 {[%emt 0:00:03]} Qb6 {[%emt 0:00:34]} 6. Nc3 {[%emt 0:
00:02]} e6 {[%emt 0:00:36]} 7. Nh4 {[%emt 0:00:05]} Be7 {[%emt 0:00:39]} 8. h3
{[%emt 0:00:20]} Bh5 {[%emt 0:00:01]} 9. g4 {[%emt 0:00:04]} Bg6 {[%emt 0:00:
01]} 10. Nxg6 {[%emt 0:00:02]} hxg6 {[%emt 0:00:02]} 11. g5 {[%emt 0:00:03]}
Ne4 {[%emt 0:05:04]} 12. Nxe4 {[%emt 0:00:04]} dxe4 {[%emt 0:00:01]} 13. Qc2 {
[%emt 0:00:05]} Qa5+ {[%emt 0:03:47]} 14. Bd2 {[%emt 0:00:02]} Bb4 {[%emt 0:00:
00]} 15. Rg1 {[%emt 0:05:21]} Rh4 {[%emt 0:00:30]} 16. a3 {[%emt 0:00:19]}
Bxd2+ {[%emt 0:00:03]} 17. Qxd2 {[%emt 0:00:01]} Qxd2+ {[%emt 0:00:43]} 18.
Kxd2 {[%emt 0:00:02]} Nd7 {[%emt 0:00:00]} 19. Rg4 {[%emt 0:00:53]} Rxg4 {
[%emt 0:00:04]} 20. hxg4 {[%emt 0:00:01]} f5 {[%emt 0:00:35]} 21. gxf6 {[%emt
0:02:30]} gxf6 {[%emt 0:00:02]} 22. Bg2 {[%emt 0:00:08]} f5 {[%emt 0:00:01]}
23. Rh1 {[%emt 0:01:16]} Nf8 {[%emt 0:00:01]} 24. f3 {[%emt 0:00:22]} exf3 {
[%emt 0:00:07]} 25. Bxf3 {[%emt 0:00:02]} Rd8 {[%emt 0:00:39]} 26. b4 {[%emt 0:
00:48]} a6 {[%emt 0:01:22]} 27. Kc3 {[%emt 0:00:19]} Rd7 {[%emt 0:01:09]} 28.
gxf5 {[%emt 0:00:06]} gxf5 {[%emt 0:00:38]} 29. a4 {[%emt 0:00:35]} Kd8 {[%emt
0:01:36]} 30. Rh8 {[%emt 0:02:34]} Rf7 {[%emt 0:00:01]} 31. Rg8 {[%emt 0:00:43]
} Kc7 {[%emt 0:00:28]} 32. Bh5 {[%emt 0:00:08]} Rh7 {[%emt 0:00:14]} 33. Rxf8 {
[%emt 0:00:31]} Rxh5 {[%emt 0:00:01]} 34. Rf7+ {[%emt 0:00:04]} Kc8 {[%emt 0:
00:01]} 35. Re7 {[%emt 0:00:12]} Rh6 {[%emt 0:00:03]} 36. c5 {[%emt 0:00:11]}
Rf6 {[%emt 0:00:20]} 37. Kc4 {[%emt 0:00:28]} f4 {[%emt 0:00:03]} 38. exf4 {
[%emt 0:00:10]} Rxf4 {[%emt 0:00:01]} 39. Rxe6 {[%emt 0:00:04]} Rf1 {[%emt 0:
00:03]} 40. Re3 {[%emt 0:01:06]} Ra1 {[%emt 0:00:12]} 41. a5 {[%emt 0:00:22]}
Rd1 {[%emt 0:00:15]} 42. Rd3 {[%emt 0:00:04]} Rc1+ {[%emt 0:00:03]} 43. Kb3 {
[%emt 0:00:02]} Rb1+ {[%emt 0:00:03]} 44. Kc3 {[%emt 0:00:03]} Kc7 {[%emt 0:00:
15]} 45. d5 {[%emt 0:00:05]} cxd5 {[%emt 0:00:04]} 46. Rxd5 {[%emt 0:00:01]}
Rc1+ {[%emt 0:00:08]} 47. Kb2 {[%emt 0:00:10]} Rc4 {[%emt 0:00:07]} 48. Kb3 {
[%emt 0:00:01]} Rc1 {[%emt 0:00:01]} 49. Rd3 {[%emt 0:00:06]} Kc6 {[%emt 0:00:
04]} 50. Rd6+ {[%emt 0:00:29]} Kc7 {[%emt 0:00:02]} 51. Rg6 {[%emt 0:00:07]}
Kd7 {[%emt 0:00:19]} 52. Kb2 {[%emt 0:01:15]} Rc4 {[%emt 0:00:02]} 53. Kb3 {
[%emt 0:00:01]} Rc1 {[%emt 0:00:01]} 54. Rb6 {[%emt 0:00:06]} Kc7 {[%emt 0:00:
01]} 1/2-1/2

[Event "16th EWICC 2015"]
[Site "Kutaisi"]
[Date "2015.06.02"]
[Round "7"]
[White "Khmiadashvili, Tamar"]
[Black "Mammadova, Narmin"]
[Result "0-1"]
[ECO "A06"]
[WhiteElo "2043"]
[BlackElo "2117"]
[Annotator "Robot 11"]
[PlyCount "102"]
[EventDate "2015.??.??"]
[EventCountry "GEO"]
[TimeControl "900+10"]

1. Nf3 {[%emt 0:00:02]} d5 {[%emt 0:00:01]} 2. b3 {[%emt 0:00:01]} Nf6 {[%emt
0:00:03]} 3. Bb2 {[%emt 0:00:01]} g6 {[%emt 0:00:03]} 4. e3 {[%emt 0:00:05]}
Bg7 {[%emt 0:00:03]} 5. g3 {[%emt 0:00:12]} O-O {[%emt 0:00:03]} 6. Bg2 {[%emt
0:00:03]} b6 {[%emt 0:00:07]} 7. O-O {[%emt 0:00:03]} Bb7 {[%emt 0:00:01]} 8.
d3 {[%emt 0:00:07]} Nbd7 {[%emt 0:00:03]} 9. Nbd2 {[%emt 0:00:04]} c5 {[%emt 0:
00:07]} 10. Rb1 {[%emt 0:00:06]} Qc7 {[%emt 0:00:05]} 11. Re1 {[%emt 0:00:30]}
e5 {[%emt 0:00:04]} 12. e4 {[%emt 0:00:06]} d4 {[%emt 0:00:20]} 13. a4 {[%emt
0:00:06]} a6 {[%emt 0:00:06]} 14. Nf1 {[%emt 0:00:22]} b5 {[%emt 0:00:10]} 15.
Ra1 {[%emt 0:00:01]} Rfc8 {[%emt 0:00:09]} 16. Bh3 {[%emt 0:00:14]} c4 {[%emt
0:00:24]} 17. Ba3 {[%emt 0:00:24]} Re8 {[%emt 0:00:57]} 18. Re2 {[%emt 0:00:49]
} Bc6 {[%emt 0:01:38]} 19. Bb4 {[%emt 0:00:55]} bxa4 {[%emt 0:00:45]} 20. bxc4
{[%emt 0:00:11]} Rab8 {[%emt 0:00:19]} 21. Ba3 {[%emt 0:00:39]} Bf8 {[%emt 0:
00:33]} 22. Qc1 {[%emt 0:00:13]} Rb7 {[%emt 0:02:52]} 23. Ne1 {[%emt 0:00:16]}
Bg7 {[%emt 0:00:20]} 24. f4 {[%emt 0:00:20]} Bh6 {[%emt 0:00:07]} 25. Ng2 {
[%emt 0:00:11]} Nh5 {[%emt 0:00:34]} 26. Rf2 {[%emt 0:00:11]} Nf8 {[%emt 0:00:
53]} 27. Bxf8 {[%emt 0:00:44]} Rxf8 {[%emt 0:01:52]} 28. Bg4 {[%emt 0:00:49]}
Nf6 {[%emt 0:00:10]} 29. Bd1 {[%emt 0:00:37]} Rfb8 {[%emt 0:00:39]} 30. c3 {
[%emt 0:00:27]} Qd7 {[%emt 0:02:17]} 31. Rfa2 {[%emt 0:00:53]} Qh3 {[%emt 0:02:
11]} 32. cxd4 {[%emt 0:00:33]} exd4 {[%emt 0:00:09]} 33. Rf2 {[%emt 0:02:11]}
Ng4 {[%emt 0:00:19]} 34. Bxg4 {[%emt 0:00:27]} Qxg4 {[%emt 0:00:01]} 35. Ne1 {
[%emt 0:00:44]} Rb3 {[%emt 0:00:24]} 36. h3 {[%emt 0:00:58]} Qd7 {[%emt 0:00:
27]} 37. g4 {[%emt 0:00:12]} Bf8 {[%emt 0:00:47]} 38. f5 {[%emt 0:00:29]} a3 {
[%emt 0:00:08]} 39. Qg5 {[%emt 0:00:41]} Rb1 {[%emt 0:00:19]} 40. Rxb1 {[%emt
0:01:41]} Rxb1 {[%emt 0:00:01]} 41. Nf3 {[%emt 0:00:10]} Rb2 {[%emt 0:00:57]}
42. fxg6 {[%emt 0:00:41]} hxg6 {[%emt 0:00:13]} 43. Qa5 {[%emt 0:01:23]} Rxf2 {
[%emt 0:00:14]} 44. Kxf2 {[%emt 0:00:01]} Qb7 {[%emt 0:00:05]} 45. Ne5 {[%emt
0:01:04]} Qb2+ {[%emt 0:00:03]} 46. Qd2 {[%emt 0:00:11]} Ba4 {[%emt 0:00:20]}
47. Qxb2 {[%emt 0:01:10]} axb2 {[%emt 0:00:01]} 48. Nd2 {[%emt 0:00:00]} Bc2 {
[%emt 0:00:07]} 49. Nc6 {[%emt 0:00:15]} Bh6 {[%emt 0:00:04]} 50. Nb1 {[%emt 0:
00:32]} Bxb1 {[%emt 0:00:01]} 51. Nxd4 {[%emt 0:00:02]} Bxd3 {[%emt 0:00:05]}
0-1

[Event "16th EWICC 2015"]
[Site "Kutaisi"]
[Date "2015.06.02"]
[Round "7"]
[White "Khurtsidze, Nino"]
[Black "Melashvili, Nino"]
[Result "1-0"]
[ECO "E21"]
[WhiteElo "2451"]
[BlackElo "2173"]
[Annotator "Robot 11"]
[PlyCount "69"]
[EventDate "2015.??.??"]
[EventCountry "GEO"]
[TimeControl "900+10"]

1. d4 {[%emt 0:00:01]} Nf6 {[%emt 0:00:02]} 2. c4 {[%emt 0:00:02]} e6 {[%emt 0:
00:02]} 3. Nc3 {[%emt 0:00:01]} Bb4 {[%emt 0:00:00]} 4. Nf3 {[%emt 0:00:03]}
O-O {[%emt 0:00:02]} 5. g3 {[%emt 0:00:07]} d5 {[%emt 0:00:11]} 6. Bg2 {[%emt
0:00:06]} Ne4 {[%emt 0:00:12]} 7. Qc2 {[%emt 0:00:06]} f5 {[%emt 0:00:18]} 8.
O-O c6 9. Bf4 {[%emt 0:00:25]} Nd7 {[%emt 0:00:07]} 10. a3 {[%emt 0:00:04]} Be7
{[%emt 0:00:02]} 11. b4 {[%emt 0:00:20]} a6 {[%emt 0:01:34]} 12. Ne5 {[%emt 0:
00:07]} g5 {[%emt 0:00:11]} 13. Nxd7 {[%emt 0:00:04]} Bxd7 {[%emt 0:00:15]} 14.
Be5 {[%emt 0:00:01]} Nd6 {[%emt 0:03:17]} 15. c5 {[%emt 0:01:07]} Nc4 {[%emt 0:
00:15]} 16. e3 {[%emt 0:00:01]} Be8 {[%emt 0:00:28]} 17. Rfe1 {[%emt 0:00:31]}
Bg6 {[%emt 0:00:20]} 18. f4 {[%emt 0:00:15]} a5 {[%emt 0:00:10]} 19. b5 {[%emt
0:00:52]} b6 {[%emt 0:01:45]} 20. bxc6 {[%emt 0:02:09]} bxc5 {[%emt 0:00:02]}
21. Nb5 {[%emt 0:00:28]} Nxe5 {[%emt 0:00:48]} 22. dxe5 {[%emt 0:00:20]} Qb6 {
[%emt 0:00:01]} 23. a4 {[%emt 0:00:19]} Qxc6 {[%emt 0:00:14]} 24. Rac1 {[%emt
0:00:14]} Rac8 {[%emt 0:00:43]} 25. Na7 {[%emt 0:00:16]} Qa6 {[%emt 0:00:02]}
26. Nxc8 {[%emt 0:00:02]} Rxc8 {[%emt 0:00:01]} 27. Rb1 {[%emt 0:00:08]} c4 {
[%emt 0:00:14]} 28. Rb5 {[%emt 0:00:16]} Bb4 {[%emt 0:00:32]} 29. Rd1 {[%emt 0:
00:50]} Be8 {[%emt 0:00:27]} 30. Rbxd5 {[%emt 0:00:08]} exd5 {[%emt 0:00:03]}
31. Bxd5+ {[%emt 0:00:01]} Kh8 {[%emt 0:02:49]} 32. Qxf5 {[%emt 0:00:03]} c3 {
[%emt 0:00:46]} 33. Be6 {[%emt 0:00:58]} Rc7 {[%emt 0:01:11]} 34. Qf6+ {[%emt
0:01:03]} Rg7 {[%emt 0:00:01]} 35. Rd7 {[%emt 0:00:09]} 1-0

[Event "16th EWICC 2015"]
[Site "Kutaisi"]
[Date "2015.06.02"]
[Round "7"]
[White "Kostava, Elene"]
[Black "Jalaghonia, Nino"]
[Result "1/2-1/2"]
[ECO "E21"]
[WhiteElo "1691"]
[BlackElo "1865"]
[Annotator "Robot 11"]
[PlyCount "55"]
[EventDate "2015.??.??"]
[EventCountry "GEO"]
[TimeControl "900+10"]

1. d4 {[%emt 0:00:02]} Nf6 {[%emt 0:00:01]} 2. Nf3 {[%emt 0:00:02]} e6 {[%emt
0:00:02]} 3. c4 {[%emt 0:00:02]} b6 {[%emt 0:00:06]} 4. Nc3 {[%emt 0:00:03]}
Bb4 {[%emt 0:00:15]} 5. Bg5 {[%emt 0:00:20]} h6 {[%emt 0:00:08]} 6. Bh4 {[%emt
0:00:05]} g5 {[%emt 0:00:49]} 7. Bg3 {[%emt 0:00:05]} Ne4 {[%emt 0:00:03]} 8.
Qc2 {[%emt 0:00:13]} Bb7 {[%emt 0:00:12]} 9. a3 {[%emt 0:01:14]} Bxc3+ {[%emt
0:00:07]} 10. bxc3 {[%emt 0:00:01]} d6 {[%emt 0:00:08]} 11. e3 {[%emt 0:00:14]}
Nd7 {[%emt 0:00:13]} 12. Nd2 {[%emt 0:00:22]} f5 {[%emt 0:00:40]} 13. f3 {
[%emt 0:00:20]} Nxg3 {[%emt 0:00:21]} 14. hxg3 {[%emt 0:00:02]} Qf6 {[%emt 0:
00:58]} 15. Bd3 {[%emt 0:01:09]} O-O-O {[%emt 0:00:20]} 16. O-O-O {[%emt 0:01:
05]} h5 {[%emt 0:01:05]} 17. Nb3 {[%emt 0:00:52]} h4 {[%emt 0:01:38]} 18. gxh4
{[%emt 0:00:56]} gxh4 {[%emt 0:00:06]} 19. Rh3 {[%emt 0:03:26]} Rdg8 {[%emt 0:
01:16]} 20. d5 {[%emt 0:01:49]} Ne5 {[%emt 0:00:51]} 21. dxe6 {[%emt 0:00:46]}
Nxd3+ {[%emt 0:01:52]} 22. Qxd3 {[%emt 0:00:24]} Rxg2 {[%emt 0:00:03]} 23. Nd4
{[%emt 0:00:13]} f4 {[%emt 0:01:18]} 24. e4 {[%emt 0:01:08]} Rg3 {[%emt 0:01:
13]} 25. Rdh1 {[%emt 0:00:18]} Rxh3 {[%emt 0:00:23]} 26. Rxh3 {[%emt 0:00:01]}
Rg8 {[%emt 0:01:08]} 27. Nf5 {[%emt 0:01:13]} Qxe6 {[%emt 0:00:18]} 28. Rxh4 {
[%emt 0:00:03]} 1/2-1/2

[Event "16th EWICC 2015"]
[Site "Kutaisi"]
[Date "2015.06.02"]
[Round "7"]
[White "Kosteniuk, Alexandra"]
[Black "Daulyte, Deimante"]
[Result "1-0"]
[ECO "C70"]
[WhiteElo "2530"]
[BlackElo "2402"]
[Annotator "Robot 11"]
[PlyCount "78"]
[EventDate "2015.??.??"]
[EventCountry "GEO"]
[TimeControl "900+10"]

1. e4 {[%emt 0:00:02]} e5 {[%emt 0:00:02]} 2. Nf3 {[%emt 0:00:02]} Nc6 {[%emt
0:00:03]} 3. Bb5 {[%emt 0:00:02]} a6 {[%emt 0:00:02]} 4. Ba4 {[%emt 0:00:02]}
Nge7 {[%emt 0:00:02]} 5. O-O {[%emt 0:00:11]} g6 {[%emt 0:00:07]} 6. c3 {[%emt
0:00:02]} Bg7 {[%emt 0:00:02]} 7. d4 {[%emt 0:00:02]} exd4 {[%emt 0:00:06]} 8.
cxd4 {[%emt 0:00:01]} b5 {[%emt 0:00:03]} 9. Bc2 {[%emt 0:00:03]} d6 {[%emt 0:
01:03]} 10. d5 {[%emt 0:00:04]} Na5 {[%emt 0:00:11]} 11. Qe1 {[%emt 0:00:02]}
Nc4 {[%emt 0:00:59]} 12. Nbd2 {[%emt 0:00:01]} Nxd2 {[%emt 0:02:23]} 13. Bxd2 {
[%emt 0:00:30]} O-O {[%emt 0:02:18]} 14. Bc3 {[%emt 0:00:02]} Bxc3 {[%emt 0:04:
29]} 15. Qxc3 {[%emt 0:00:05]} Bd7 {[%emt 0:00:02]} 16. Bb3 {[%emt 0:00:29]} c5
{[%emt 0:00:37]} 17. dxc6 {[%emt 0:00:02]} Bxc6 {[%emt 0:00:03]} 18. Rfe1 {
[%emt 0:02:55]} Qb6 {[%emt 0:02:52]} 19. Qf6 {[%emt 0:00:23]} Ra7 {[%emt 0:00:
35]} 20. Ng5 {[%emt 0:01:19]} Nc8 {[%emt 0:00:34]} 21. Re3 {[%emt 0:00:08]} Qd8
{[%emt 0:00:25]} 22. Qf4 {[%emt 0:01:40]} h6 {[%emt 0:00:23]} 23. Nxf7 {[%emt
0:01:15]} Raxf7 {[%emt 0:00:23]} 24. Qxh6 {[%emt 0:00:01]} Qf6 {[%emt 0:00:05]}
25. Rf3 {[%emt 0:02:59]} Qg7 {[%emt 0:00:02]} 26. Qxg7+ {[%emt 0:01:46]} Kxg7 {
[%emt 0:00:02]} 27. Rxf7+ {[%emt 0:00:01]} Rxf7 {[%emt 0:00:01]} 28. Bxf7 {
[%emt 0:00:01]} Kxf7 {[%emt 0:00:01]} 29. Rc1 {[%emt 0:00:02]} Ne7 {[%emt 0:00:
08]} 30. f3 {[%emt 0:00:00]} d5 {[%emt 0:00:33]} 31. exd5 {[%emt 0:00:02]} Bxd5
{[%emt 0:00:03]} 32. b3 {[%emt 0:00:01]} Nc6 {[%emt 0:00:17]} 33. h4 {[%emt 0:
00:30]} Ke6 {[%emt 0:00:29]} 34. Re1+ {[%emt 0:00:22]} Kf5 {[%emt 0:00:15]} 35.
Kf2 {[%emt 0:00:06]} Nb4 {[%emt 0:00:05]} 36. Re2 {[%emt 0:00:02]} a5 {[%emt 0:
00:20]} 37. Rd2 {[%emt 0:00:17]} Be6 {[%emt 0:00:23]} 38. g4+ {[%emt 0:00:51]}
Kf4 {[%emt 0:00:15]} 39. a3 {[%emt 0:00:06]} Bxb3 {[%emt 0:00:47]} 1-0

[Event "16th EWICC 2015"]
[Site "Kutaisi"]
[Date "2015.06.02"]
[Round "7"]
[White "Lomineishvili, Maia"]
[Black "Mammadzada, Gunay"]
[Result "1-0"]
[ECO "D10"]
[WhiteElo "2364"]
[BlackElo "2336"]
[Annotator "Robot 11"]
[PlyCount "85"]
[EventDate "2015.??.??"]
[EventCountry "GEO"]
[TimeControl "900+10"]

1. d4 {[%emt 0:00:02]} d5 {[%emt 0:00:01]} 2. c4 {[%emt 0:00:04]} c6 {[%emt 0:
00:01]} 3. cxd5 {[%emt 0:00:02]} cxd5 {[%emt 0:00:02]} 4. Nc3 {[%emt 0:00:01]}
Nf6 {[%emt 0:00:02]} 5. Bf4 {[%emt 0:00:01]} Nc6 {[%emt 0:00:03]} 6. e3 {[%emt
0:00:03]} Bg4 {[%emt 0:00:04]} 7. Qb3 {[%emt 0:00:20]} Na5 {[%emt 0:00:04]} 8.
Qa4+ {[%emt 0:00:07]} Bd7 {[%emt 0:00:02]} 9. Qc2 {[%emt 0:00:02]} Rc8 {[%emt
0:00:03]} 10. Bd3 {[%emt 0:00:20]} e6 {[%emt 0:00:16]} 11. Nf3 {[%emt 0:00:02]}
Be7 {[%emt 0:00:03]} 12. O-O {[%emt 0:00:09]} O-O {[%emt 0:00:26]} 13. Ne5 {
[%emt 0:00:11]} Nc4 {[%emt 0:01:04]} 14. Bxc4 {[%emt 0:02:32]} dxc4 {[%emt 0:
00:06]} 15. Rad1 {[%emt 0:00:07]} Nd5 {[%emt 0:04:15]} 16. Bg3 {[%emt 0:00:50]}
Be8 {[%emt 0:00:18]} 17. e4 {[%emt 0:00:31]} Nxc3 {[%emt 0:00:20]} 18. bxc3 {
[%emt 0:00:14]} f6 {[%emt 0:00:50]} 19. Nf3 {[%emt 0:00:31]} Qa5 {[%emt 0:00:
49]} 20. Qb2 {[%emt 0:00:27]} Bc6 {[%emt 0:00:48]} 21. Rfe1 {[%emt 0:00:59]}
Rfd8 {[%emt 0:00:29]} 22. d5 {[%emt 0:02:27]} Ba3 {[%emt 0:00:36]} 23. Qd2 {
[%emt 0:00:40]} exd5 {[%emt 0:01:51]} 24. e5 {[%emt 0:00:01]} fxe5 {[%emt 0:01:
56]} 25. Bxe5 {[%emt 0:00:31]} Bf8 {[%emt 0:00:54]} 26. Nd4 {[%emt 0:02:08]}
Ba4 {[%emt 0:01:00]} 27. Rb1 {[%emt 0:00:12]} Qa6 {[%emt 0:00:06]} 28. Re3 {
[%emt 0:00:22]} Be8 {[%emt 0:00:41]} 29. f4 {[%emt 0:01:09]} Bf7 {[%emt 0:01:
49]} 30. Rg3 {[%emt 0:00:22]} Re8 {[%emt 0:00:08]} 31. Re1 {[%emt 0:01:24]} Qa4
{[%emt 0:00:42]} 32. Nf5 {[%emt 0:01:09]} g6 {[%emt 0:00:01]} 33. Nd4 {[%emt 0:
00:21]} Re7 {[%emt 0:00:12]} 34. f5 {[%emt 0:00:20]} Rce8 {[%emt 0:00:04]} 35.
fxg6 {[%emt 0:00:06]} hxg6 {[%emt 0:00:08]} 36. Nf3 {[%emt 0:00:48]} Qd7 {
[%emt 0:00:24]} 37. Qd4 {[%emt 0:00:35]} Bg7 {[%emt 0:00:11]} 38. Rg5 {[%emt 0:
00:25]} Re6 {[%emt 0:00:12]} 39. Rf1 {[%emt 0:00:05]} Bf8 {[%emt 0:00:05]} 40.
Qh4 {[%emt 0:00:21]} Bg7 {[%emt 0:00:18]} 41. Bxg7 {[%emt 0:00:10]} Kxg7 {
[%emt 0:00:03]} 42. Nd4 {[%emt 0:00:07]} Re1 {[%emt 0:00:13]} 43. Rxe1 {[%emt
0:00:01]} 1-0